[Event "*** Titled Tuesday Blitz"]
[Site "Chess.com"]
[Date "2020.12.01"]
[Round "3"]
[White "sara_khm"]
[Black "tteshan"]
[Result "1-0"]
[WhiteElo "2598"]
[BlackElo "2383"]
[TimeControl "180+1"]
[EndTime "10:29:38 PST"]
[Termination "sara_khm won by resignation"]

1. d4 {[%clk 0:03:00.9]} 1... d5 {[%clk 0:03:00]} 2. c4 {[%clk 0:03:00.3]} 2...
dxc4 {[%clk 0:03:00.9]} 3. e3 {[%clk 0:02:59.7]} 3... Nf6 {[%clk 0:03:00]} 4.
Nf3 {[%clk 0:02:58.9]} 4... Bg4 {[%clk 0:02:59.3]} 5. Bxc4 {[%clk 0:02:58]} 5...
e6 {[%clk 0:02:59.6]} 6. Nc3 {[%clk 0:02:55.3]} 6... a6 {[%clk 0:02:59.2]} 7. h3
{[%clk 0:02:54.5]} 7... Bh5 {[%clk 0:02:59]} 8. g4 {[%clk 0:02:54.2]} 8... Bg6
{[%clk 0:02:58.9]} 9. Ne5 {[%clk 0:02:54.7]} 9... Nbd7 {[%clk 0:02:58.5]} 10.
Nxg6 {[%clk 0:02:50]} 10... hxg6 {[%clk 0:02:59.4]} 11. Bd2 {[%clk 0:02:38.8]}
11... Nb6 {[%clk 0:02:47.4]} 12. Be2 {[%clk 0:02:38.1]} 12... c5 {[%clk
0:02:45]} 13. dxc5 {[%clk 0:02:36.9]} 13... Bxc5 {[%clk 0:02:45.5]} 14. Bf3
{[%clk 0:02:37]} 14... Qe7 {[%clk 0:02:42]} 15. Qe2 {[%clk 0:02:33.2]} 15... Rc8
{[%clk 0:02:34.1]} 16. Kf1 {[%clk 0:02:25.7]} 16... O-O {[%clk 0:02:15.9]} 17.
Kg2 {[%clk 0:02:24.9]} 17... Rfd8 {[%clk 0:02:14.1]} 18. Rad1 {[%clk 0:02:22]}
18... Nbd5 {[%clk 0:02:04.6]} 19. Nxd5 {[%clk 0:02:13.9]} 19... Nxd5 {[%clk
0:02:04.1]} 20. h4 {[%clk 0:02:13.8]} 20... Ba7 {[%clk 0:01:32.8]} 21. h5 {[%clk
0:01:56.3]} 21... g5 {[%clk 0:01:25.5]} 22. h6 {[%clk 0:01:56.3]} 22... g6
{[%clk 0:01:12.6]} 23. h7+ {[%clk 0:01:54.8]} 23... Kh8 {[%clk 0:01:12.7]} 24.
Bxd5 {[%clk 0:01:48.5]} 24... exd5 {[%clk 0:01:07.5]} 25. Qf3 {[%clk 0:01:44.3]}
25... d4 {[%clk 0:00:58]} 26. exd4 {[%clk 0:01:36.2]} 26... Bxd4 {[%clk
0:00:58.2]} 27. Ba5 {[%clk 0:01:00.1]} 27... b6 {[%clk 0:00:23.4]} 28. Rxd4
{[%clk 0:00:52.8]} 28... Rxd4 {[%clk 0:00:20.5]} 29. Bc3 {[%clk 0:00:52.7]}
29... Rxc3 {[%clk 0:00:15.6]} 30. Qxc3 {[%clk 0:00:48.7]} 30... Qe4+ {[%clk
0:00:14.5]} 31. f3 {[%clk 0:00:37.2]} 31... Qe2+ {[%clk 0:00:10.4]} 32. Kg3
{[%clk 0:00:37]} 32... Qe5+ {[%clk 0:00:10.2]} 33. Kh3 {[%clk 0:00:31.5]} 33...
Kxh7 {[%clk 0:00:05.8]} 34. Rd1 {[%clk 0:00:20.7]} 34... Rd5 {[%clk 0:00:05.7]}
35. Qxe5 {[%clk 0:00:17.8]} 35... Rxe5 {[%clk 0:00:06.3]} 36. Rd6 {[%clk
0:00:16.7]} 36... Rb5 {[%clk 0:00:06.5]} 37. b3 {[%clk 0:00:16.4]} 37... a5
{[%clk 0:00:06.7]} 38. Kg3 {[%clk 0:00:15.7]} 38... Kg7 {[%clk 0:00:07.2]} 39.
Rd3 {[%clk 0:00:15.4]} 39... Rc5 {[%clk 0:00:07.2]} 40. Rd6 {[%clk 0:00:15.2]}
40... Rc2 {[%clk 0:00:07.5]} 41. Rxb6 {[%clk 0:00:14.7]} 41... Rxa2 {[%clk
0:00:07.4]} 42. Rb5 {[%clk 0:00:15.2]} 42... Ra3 {[%clk 0:00:07.2]} 43. Rxg5
{[%clk 0:00:14.7]} 43... Kf6 {[%clk 0:00:06.8]} 44. Rb5 {[%clk 0:00:14.3]} 44...
Ke6 {[%clk 0:00:06.3]} 45. g5 {[%clk 0:00:14.5]} 45... Ra1 {[%clk 0:00:03.7]}
46. Kf4 {[%clk 0:00:14.5]} 46... Ra2 {[%clk 0:00:03.7]} 47. Rb6+ {[%clk
0:00:14.8]} 47... Kd5 {[%clk 0:00:03.5]} 48. Rb7 {[%clk 0:00:15]} 48... Ke6
{[%clk 0:00:03.9]} 49. Rb6+ {[%clk 0:00:13.9]} 49... Ke7 {[%clk 0:00:04.4]} 50.
Ke5 {[%clk 0:00:12.8]} 50... Re2+ {[%clk 0:00:05]} 51. Kd4 {[%clk 0:00:12.8]}
51... Rd2+ {[%clk 0:00:04.4]} 52. Ke3 {[%clk 0:00:12.8]} 52... Rb2 {[%clk
0:00:03.9]} 53. Rb5 {[%clk 0:00:12.5]} 53... Ra2 {[%clk 0:00:03]} 54. Kf4 {[%clk
0:00:12]} 54... Ra1 {[%clk 0:00:03.3]} 55. Ke5 {[%clk 0:00:11.9]} 55... Re1+
{[%clk 0:00:02.9]} 56. Kd5 {[%clk 0:00:12.2]} 56... Ra1 {[%clk 0:00:03.4]} 57.
Rb7+ {[%clk 0:00:11]} 57... Kf8 {[%clk 0:00:04]} 58. Ke5 {[%clk 0:00:11]} 58...
Re1+ {[%clk 0:00:04.1]} 59. Kf4 {[%clk 0:00:10.2]} 59... Ra1 {[%clk 0:00:03.4]}
60. Rb5 {[%clk 0:00:10.4]} 60... Ra2 {[%clk 0:00:02.5]} 61. Kg3 {[%clk
0:00:10.2]} 61... Ra1 {[%clk 0:00:02.5]} 62. Rb8+ {[%clk 0:00:10.4]} 62... Ke7
{[%clk 0:00:01.8]} 63. Ra8 {[%clk 0:00:11.3]} 63... Ke6 {[%clk 0:00:02.1]} 64.
b4 {[%clk 0:00:11.5]} 64... Kf5 {[%clk 0:00:02.1]} 65. Rxa5+ {[%clk 0:00:10.7]}
65... Rxa5 {[%clk 0:00:01.8]} 66. bxa5 {[%clk 0:00:11.6]} 66... Kxg5 {[%clk
0:00:02.1]} 67. a6 {[%clk 0:00:12.5]} 67... f5 {[%clk 0:00:01.9]} 68. a7 {[%clk
0:00:13.4]} 68... f4+ {[%clk 0:00:02.6]} 69. Kg2 {[%clk 0:00:13.3]} 1-0

[Event "*** Titled Tuesday Blitz"]
[Site "Chess.com"]
[Date "2020.12.01"]
[Round "3"]
[White "anasta10"]
[Black "Shubinkirill2003"]
[Result "1/2-1/2"]
[WhiteElo "2431"]
[BlackElo "2704"]
[TimeControl "180+1"]
[EndTime "10:29:39 PST"]
[Termination "Game drawn - insufficient material"]

1. d4 {[%clk 0:03:00.9]} 1... e6 {[%clk 0:02:59.9]} 2. c4 {[%clk 0:02:59.7]}
2... Nf6 {[%clk 0:03:00.1]} 3. Nc3 {[%clk 0:02:55.4]} 3... Bb4 {[%clk
0:02:59.3]} 4. Bd2 {[%clk 0:02:53.9]} 4... O-O {[%clk 0:02:58.7]} 5. Nf3 {[%clk
0:02:51.1]} 5... b6 {[%clk 0:02:58.2]} 6. e3 {[%clk 0:02:44.3]} 6... Bb7 {[%clk
0:02:58]} 7. Bd3 {[%clk 0:02:44.4]} 7... d6 {[%clk 0:02:58.1]} 8. O-O {[%clk
0:02:43.3]} 8... Nbd7 {[%clk 0:02:58.2]} 9. Rc1 {[%clk 0:02:40.3]} 9... e5
{[%clk 0:02:57.6]} 10. Bf5 {[%clk 0:02:10.8]} 10... Re8 {[%clk 0:02:53.1]} 11.
Qc2 {[%clk 0:02:07]} 11... g6 {[%clk 0:02:49.7]} 12. Bh3 {[%clk 0:02:05.3]}
12... e4 {[%clk 0:02:44.1]} 13. Ne1 {[%clk 0:01:58.4]} 13... Nh5 {[%clk
0:02:36.4]} 14. Nd5 {[%clk 0:01:49.2]} 14... Bxd2 {[%clk 0:02:34.9]} 15. Qxd2
{[%clk 0:01:49.4]} 15... Ndf6 {[%clk 0:02:32]} 16. Nxf6+ {[%clk 0:01:47.5]}
16... Qxf6 {[%clk 0:02:32]} 17. f3 {[%clk 0:01:47.1]} 17... exf3 {[%clk
0:02:27.7]} 18. Nxf3 {[%clk 0:01:48]} 18... Re7 {[%clk 0:02:23]} 19. Rf2 {[%clk
0:01:37.6]} 19... Rae8 {[%clk 0:02:18.3]} 20. Rcf1 {[%clk 0:01:31.3]} 20... Qg7
{[%clk 0:02:12.5]} 21. Ng5 {[%clk 0:01:18.5]} 21... f6 {[%clk 0:02:03.3]} 22.
Nf3 {[%clk 0:01:07.6]} 22... Qh6 {[%clk 0:01:53]} 23. d5 {[%clk 0:01:04.2]}
23... f5 {[%clk 0:01:46]} 24. Nd4 {[%clk 0:00:57.8]} 24... Qxe3 {[%clk
0:01:45.5]} 25. Ne6 {[%clk 0:00:56.5]} 25... Qxd2 {[%clk 0:01:44.9]} 26. Rxd2
{[%clk 0:00:57.4]} 26... Bc8 {[%clk 0:01:43.7]} 27. g4 {[%clk 0:00:54.3]} 27...
fxg4 {[%clk 0:01:38.1]} 28. Bxg4 {[%clk 0:00:53.8]} 28... Ng7 {[%clk 0:01:38.3]}
29. Nxg7 {[%clk 0:00:51.2]} 29... Kxg7 {[%clk 0:01:35.9]} 30. Bxc8 {[%clk
0:00:50.2]} 30... Rxc8 {[%clk 0:01:36.8]} 31. Rdf2 {[%clk 0:00:49.3]} 31... c6
{[%clk 0:01:33.1]} 32. dxc6 {[%clk 0:00:48.5]} 32... Rxc6 {[%clk 0:01:32.9]} 33.
b3 {[%clk 0:00:49.4]} 33... Rc5 {[%clk 0:01:28]} 34. Rd1 {[%clk 0:00:43.6]}
34... Rd7 {[%clk 0:01:21.7]} 35. Rfd2 {[%clk 0:00:42.5]} 35... Rg5+ {[%clk
0:01:20.8]} 36. Kf2 {[%clk 0:00:42.1]} 36... Rf7+ {[%clk 0:01:19.1]} 37. Ke3
{[%clk 0:00:42.3]} 37... Rf6 {[%clk 0:01:09.2]} 38. Rd5 {[%clk 0:00:38.3]} 38...
Rg2 {[%clk 0:01:05.5]} 39. R1d2 {[%clk 0:00:36.8]} 39... Rxd2 {[%clk 0:01:04.9]}
40. Rxd2 {[%clk 0:00:37.1]} 40... Kf7 {[%clk 0:01:04.9]} 41. Ke4 {[%clk
0:00:37]} 41... Ke6 {[%clk 0:01:04.8]} 42. Re2 {[%clk 0:00:31.6]} 42... Rf5
{[%clk 0:01:03.8]} 43. Kd4+ {[%clk 0:00:31.1]} 43... Re5 {[%clk 0:01:03.8]} 44.
Rf2 {[%clk 0:00:31]} 44... Ke7 {[%clk 0:01:03.4]} 45. a3 {[%clk 0:00:29.9]}
45... Rh5 {[%clk 0:00:58.7]} 46. b4 {[%clk 0:00:29.2]} 46... a5 {[%clk
0:00:56.6]} 47. Rb2 {[%clk 0:00:22.4]} 47... Rh3 {[%clk 0:00:50.2]} 48. bxa5
{[%clk 0:00:20.8]} 48... bxa5 {[%clk 0:00:49.6]} 49. Rb7+ {[%clk 0:00:21]} 49...
Ke6 {[%clk 0:00:48.8]} 50. Ra7 {[%clk 0:00:20.2]} 50... Rxa3 {[%clk 0:00:47.9]}
51. Rxh7 {[%clk 0:00:19.3]} 51... Ra2 {[%clk 0:00:48]} 52. Rg7 {[%clk
0:00:18.7]} 52... Kf5 {[%clk 0:00:33.4]} 53. Rf7+ {[%clk 0:00:17.5]} 53... Ke6
{[%clk 0:00:32.2]} 54. Rg7 {[%clk 0:00:17.7]} 54... Rg2 {[%clk 0:00:31.5]} 55.
Ra7 {[%clk 0:00:16.3]} 55... Rxh2 {[%clk 0:00:30.3]} 56. Rxa5 {[%clk 0:00:15.9]}
56... Rh4+ {[%clk 0:00:30.2]} 57. Kd3 {[%clk 0:00:15.5]} 57... Rh5 {[%clk
0:00:30.4]} 58. Ra8 {[%clk 0:00:15.1]} 58... Rf5 {[%clk 0:00:29.3]} 59. Rg8
{[%clk 0:00:14.8]} 59... Kf6 {[%clk 0:00:29.1]} 60. Ke4 {[%clk 0:00:14.8]} 60...
Kf7 {[%clk 0:00:27.2]} 61. Rh8 {[%clk 0:00:14]} 61... Re5+ {[%clk 0:00:26.6]}
62. Kd4 {[%clk 0:00:13.4]} 62... Re8 {[%clk 0:00:26.6]} 63. Rh7+ {[%clk
0:00:12.9]} 63... Ke6 {[%clk 0:00:26.6]} 64. Rh6 {[%clk 0:00:12.6]} 64... Rg8
{[%clk 0:00:26]} 65. Rh1 {[%clk 0:00:11.7]} 65... g5 {[%clk 0:00:25.8]} 66. Re1+
{[%clk 0:00:11.3]} 66... Kd7 {[%clk 0:00:24.5]} 67. c5 {[%clk 0:00:10]} 67...
dxc5+ {[%clk 0:00:19.8]} 68. Kxc5 {[%clk 0:00:10.9]} 68... g4 {[%clk 0:00:20.1]}
69. Kd4 {[%clk 0:00:11]} 69... g3 {[%clk 0:00:18.5]} 70. Rg1 {[%clk 0:00:10.7]}
70... Ke6 {[%clk 0:00:17.6]} 71. Ke4 {[%clk 0:00:10.4]} 71... Rg4+ {[%clk
0:00:16.2]} 72. Kf3 {[%clk 0:00:10.2]} 72... Kf5 {[%clk 0:00:16.6]} 73. Rxg3
{[%clk 0:00:09.2]} 73... Rxg3+ {[%clk 0:00:17.5]} 74. Kxg3 {[%clk 0:00:10.1]}
1/2-1/2

[Event "*** Titled Tuesday Blitz"]
[Site "Chess.com"]
[Date "2020.12.01"]
[Round "3"]
[White "TrenerChos"]
[Black "hleol"]
[Result "1/2-1/2"]
[WhiteElo "2166"]
[BlackElo "2324"]
[TimeControl "180+1"]
[EndTime "10:29:39 PST"]
[Termination "Game drawn - timeout vs insufficient material"]

1. d4 {[%clk 0:02:59.9]} 1... d5 {[%clk 0:02:58.2]} 2. Nf3 {[%clk 0:02:56]} 2...
Nf6 {[%clk 0:02:56.6]} 3. g3 {[%clk 0:02:55.4]} 3... Bf5 {[%clk 0:02:54.6]} 4.
Bg2 {[%clk 0:02:55.3]} 4... e6 {[%clk 0:02:53.1]} 5. O-O {[%clk 0:02:54.2]} 5...
h6 {[%clk 0:02:53]} 6. c4 {[%clk 0:02:55]} 6... c6 {[%clk 0:02:52.6]} 7. Nc3
{[%clk 0:02:54.4]} 7... Be7 {[%clk 0:02:50.3]} 8. Nd2 {[%clk 0:02:52.8]} 8...
O-O {[%clk 0:02:49.8]} 9. e4 {[%clk 0:02:51.7]} 9... dxe4 {[%clk 0:02:50.7]} 10.
Ndxe4 {[%clk 0:02:51.8]} 10... Nbd7 {[%clk 0:02:48.3]} 11. h3 {[%clk 0:02:49.1]}
11... Nxe4 {[%clk 0:02:44.4]} 12. Nxe4 {[%clk 0:02:45.9]} 12... Nf6 {[%clk
0:02:44.7]} 13. Nc3 {[%clk 0:02:43.2]} 13... a5 {[%clk 0:02:30.1]} 14. Be3
{[%clk 0:02:39.5]} 14... Qc7 {[%clk 0:02:26.5]} 15. Qb3 {[%clk 0:02:34.7]} 15...
Rfd8 {[%clk 0:02:20.4]} 16. d5 {[%clk 0:02:30]} 16... cxd5 {[%clk 0:02:00]} 17.
cxd5 {[%clk 0:02:22.9]} 17... Qd6 {[%clk 0:01:34.3]} 18. Rfd1 {[%clk 0:02:14.5]}
18... Qb4 {[%clk 0:01:26.7]} 19. dxe6 {[%clk 0:01:46.7]} 19... Bxe6 {[%clk
0:01:20.1]} 20. Qxb4 {[%clk 0:01:38.4]} 20... axb4 {[%clk 0:01:17.5]} 21. Nb5
{[%clk 0:01:20.6]} 21... Rxa2 {[%clk 0:01:12.5]} 22. Rxd8+ {[%clk 0:01:17.6]}
22... Bxd8 {[%clk 0:01:13.4]} 23. Rxa2 {[%clk 0:01:16.4]} 23... Bxa2 {[%clk
0:01:14.3]} 24. Bxb7 {[%clk 0:01:16]} 24... Be7 {[%clk 0:01:11.4]} 25. Bg2
{[%clk 0:01:11]} 25... Bd5 {[%clk 0:01:11.1]} 26. Nd4 {[%clk 0:01:05.6]} 26...
Bxg2 {[%clk 0:01:10.2]} 27. Kxg2 {[%clk 0:01:05.4]} 27... Nd5 {[%clk 0:01:11.1]}
28. Nc6 {[%clk 0:01:02.4]} 28... Nxe3+ {[%clk 0:01:11.1]} 29. fxe3 {[%clk
0:01:01.4]} 29... Bf6 {[%clk 0:01:11.5]} 30. b3 {[%clk 0:00:57.2]} 30... Bc3
{[%clk 0:01:11.6]} 31. Kf3 {[%clk 0:00:56.7]} 31... Kf8 {[%clk 0:01:11.1]} 32.
Ke4 {[%clk 0:00:55.9]} 32... Ke8 {[%clk 0:01:10.7]} 33. Kd5 {[%clk 0:00:50.4]}
33... Kd7 {[%clk 0:01:10.7]} 34. e4 {[%clk 0:00:49.4]} 34... Be1 {[%clk
0:01:08.3]} 35. g4 {[%clk 0:00:46.7]} 35... g6 {[%clk 0:01:05.4]} 36. Ne5+
{[%clk 0:00:45.6]} 36... Ke7 {[%clk 0:01:05.2]} 37. Nd3 {[%clk 0:00:44.4]} 37...
Bd2 {[%clk 0:01:02.7]} 38. Ne5 {[%clk 0:00:40.9]} 38... Kf6 {[%clk 0:01:00.4]}
39. Nf3 {[%clk 0:00:31.9]} 39... Bc3 {[%clk 0:00:59]} 40. e5+ {[%clk 0:00:31.1]}
40... Ke7 {[%clk 0:00:58.8]} 41. Ng1 {[%clk 0:00:25]} 41... h5 {[%clk
0:00:56.7]} 42. Ne2 {[%clk 0:00:23.7]} 42... hxg4 {[%clk 0:00:55.2]} 43. hxg4
{[%clk 0:00:24.5]} 43... g5 {[%clk 0:00:52.6]} 44. Nc1 {[%clk 0:00:17.6]} 44...
Bb2 {[%clk 0:00:46.1]} 45. Nd3 {[%clk 0:00:16.4]} 45... Bc3 {[%clk 0:00:46.4]}
46. Nc5 {[%clk 0:00:15.4]} 46... Be1 {[%clk 0:00:43.8]} 47. Ne4 {[%clk
0:00:14.7]} 47... Bc3 {[%clk 0:00:37.9]} 48. Nxg5 {[%clk 0:00:13.2]} 48... f6
{[%clk 0:00:38.4]} 49. exf6+ {[%clk 0:00:12.5]} 49... Kxf6 {[%clk 0:00:37.3]}
50. Ne4+ {[%clk 0:00:12.6]} 50... Kg6 {[%clk 0:00:36.1]} 51. Kc4 {[%clk
0:00:12.2]} 51... Be1 {[%clk 0:00:35.9]} 52. Kd5 {[%clk 0:00:07.6]} 52... Kh6
{[%clk 0:00:35.1]} 53. Ke6 {[%clk 0:00:07.1]} 53... Kg6 {[%clk 0:00:35]} 54. Nd6
{[%clk 0:00:04.4]} 54... Kg5 {[%clk 0:00:34.3]} 55. Kd5 {[%clk 0:00:03.3]} 55...
Kxg4 {[%clk 0:00:34.6]} 56. Ne4 {[%clk 0:00:04.1]} 56... Kf4 {[%clk 0:00:34.6]}
57. Nc5 {[%clk 0:00:04]} 57... Ke3 {[%clk 0:00:34]} 58. Kc4 {[%clk 0:00:04.2]}
58... Bc3 {[%clk 0:00:31.9]} 59. Nd3 {[%clk 0:00:03.7]} 59... Ke4 {[%clk
0:00:30.3]} 60. Nxb4 {[%clk 0:00:03.3]} 60... Be1 {[%clk 0:00:29.9]} 61. Nd5
{[%clk 0:00:03.2]} 61... Ke5 {[%clk 0:00:29.2]} 62. Nc3 {[%clk 0:00:02.7]} 62...
Kd6 {[%clk 0:00:29.5]} 63. b4 {[%clk 0:00:02.1]} 63... Bxc3 {[%clk 0:00:28.1]}
64. Kxc3 {[%clk 0:00:01.2]} 64... Kc6 {[%clk 0:00:28.6]} 1/2-1/2

[Event "*** Titled Tuesday Blitz"]
[Site "Chess.com"]
[Date "2020.12.01"]
[Round "3"]
[White "Sunnika"]
[Black "GameOverBro"]
[Result "1/2-1/2"]
[WhiteElo "2338"]
[BlackElo "2533"]
[TimeControl "180+1"]
[EndTime "10:29:45 PST"]
[Termination "Game drawn - insufficient material"]

1. d4 {[%clk 0:03:00.9]} 1... d6 {[%clk 0:02:59.3]} 2. Nf3 {[%clk 0:03:01.8]}
2... Nf6 {[%clk 0:02:59.6]} 3. Nc3 {[%clk 0:03:01.6]} 3... Nbd7 {[%clk
0:02:59.7]} 4. Bf4 {[%clk 0:02:59.1]} 4... Nh5 {[%clk 0:02:58.6]} 5. Bd2 {[%clk
0:02:57.6]} 5... e5 {[%clk 0:02:57.2]} 6. e4 {[%clk 0:02:55.3]} 6... Nhf6 {[%clk
0:02:56.2]} 7. Bc4 {[%clk 0:02:54.3]} 7... Be7 {[%clk 0:02:55.8]} 8. O-O {[%clk
0:02:53.3]} 8... c6 {[%clk 0:02:55.1]} 9. a4 {[%clk 0:02:51.8]} 9... Qc7 {[%clk
0:02:53.5]} 10. Qe2 {[%clk 0:02:50.2]} 10... h6 {[%clk 0:02:53]} 11. Rad1 {[%clk
0:02:50.4]} 11... a6 {[%clk 0:02:51.5]} 12. d5 {[%clk 0:02:45.3]} 12... Nf8
{[%clk 0:02:41.3]} 13. dxc6 {[%clk 0:02:32.5]} 13... bxc6 {[%clk 0:02:42.2]} 14.
h3 {[%clk 0:02:16.6]} 14... Ng6 {[%clk 0:02:41.9]} 15. Rfe1 {[%clk 0:02:14.6]}
15... O-O {[%clk 0:02:42]} 16. b4 {[%clk 0:02:08.6]} 16... Nh5 {[%clk
0:02:34.4]} 17. b5 {[%clk 0:01:57.1]} 17... axb5 {[%clk 0:02:32.2]} 18. axb5
{[%clk 0:01:56.8]} 18... Nhf4 {[%clk 0:02:32.8]} 19. Qf1 {[%clk 0:01:56.9]}
19... Be6 {[%clk 0:02:24]} 20. Bb3 {[%clk 0:01:39.1]} 20... c5 {[%clk
0:01:24.8]} 21. Bxf4 {[%clk 0:01:35.9]} 21... Nxf4 {[%clk 0:01:24.4]} 22. Nd5
{[%clk 0:01:35.9]} 22... Bxd5 {[%clk 0:01:22.8]} 23. Bxd5 {[%clk 0:01:35.5]}
23... Nxd5 {[%clk 0:01:15.3]} 24. Rxd5 {[%clk 0:01:36.4]} 24... c4 {[%clk
0:01:13.9]} 25. Nd2 {[%clk 0:01:27.3]} 25... Ra4 {[%clk 0:01:10.7]} 26. Rb1
{[%clk 0:01:22.3]} 26... Rb8 {[%clk 0:01:10.4]} 27. Qd1 {[%clk 0:00:59.9]} 27...
c3 {[%clk 0:01:08.8]} 28. Nf1 {[%clk 0:00:58.6]} 28... Rxe4 {[%clk 0:01:08.7]}
29. Ne3 {[%clk 0:00:54.8]} 29... g6 {[%clk 0:01:05.8]} 30. Rd3 {[%clk
0:00:46.1]} 30... Qc5 {[%clk 0:00:46.6]} 31. Nd5 {[%clk 0:00:45.9]} 31... Bd8
{[%clk 0:00:46.2]} 32. Rxc3 {[%clk 0:00:45.9]} 32... Rc4 {[%clk 0:00:38.4]} 33.
Rxc4 {[%clk 0:00:42.9]} 33... Qxc4 {[%clk 0:00:39.3]} 34. Qd3 {[%clk 0:00:28.7]}
34... Qc5 {[%clk 0:00:31.8]} 35. c4 {[%clk 0:00:23.7]} 35... Bb6 {[%clk
0:00:29.5]} 36. Rb2 {[%clk 0:00:24]} 36... Kf8 {[%clk 0:00:23.9]} 37. g3 {[%clk
0:00:23.1]} 37... Ra8 {[%clk 0:00:20.5]} 38. Kg2 {[%clk 0:00:23]} 38... Ra3
{[%clk 0:00:19.8]} 39. Qe2 {[%clk 0:00:22.1]} 39... Kg7 {[%clk 0:00:17.4]} 40.
Nxb6 {[%clk 0:00:19.2]} 40... Qxb6 {[%clk 0:00:17.6]} 41. Qd2 {[%clk 0:00:17.2]}
41... Ra7 {[%clk 0:00:12.7]} 42. Qd5 {[%clk 0:00:16.7]} 42... Rc7 {[%clk
0:00:11.4]} 43. Rd2 {[%clk 0:00:16.6]} 43... Kf8 {[%clk 0:00:11.5]} 44. Qa8+
{[%clk 0:00:13.1]} 44... Kg7 {[%clk 0:00:11.2]} 45. Qd5 {[%clk 0:00:12.3]} 45...
Rc5 {[%clk 0:00:10.2]} 46. Qxd6 {[%clk 0:00:10.6]} 46... Qxd6 {[%clk 0:00:11.1]}
47. Rxd6 {[%clk 0:00:10.6]} 47... Rxc4 {[%clk 0:00:11.8]} 48. Rb6 {[%clk
0:00:06.4]} 48... Rb4 {[%clk 0:00:12]} 49. h4 {[%clk 0:00:06]} 49... h5 {[%clk
0:00:12.1]} 50. Rb7 {[%clk 0:00:05.1]} 50... Kf6 {[%clk 0:00:11.6]} 51. b6
{[%clk 0:00:05.3]} 51... Ke6 {[%clk 0:00:12]} 52. Rb8 {[%clk 0:00:05.5]} 52...
Kf5 {[%clk 0:00:10.7]} 53. b7 {[%clk 0:00:05.4]} 53... f6 {[%clk 0:00:10.4]} 54.
f3 {[%clk 0:00:05]} 54... Rb2+ {[%clk 0:00:10.3]} 55. Kf1 {[%clk 0:00:04]} 55...
Rb1+ {[%clk 0:00:07.7]} 56. Ke2 {[%clk 0:00:04.1]} 56... Rb3 {[%clk 0:00:07.6]}
57. Kd2 {[%clk 0:00:03.7]} 57... e4 {[%clk 0:00:07.6]} 58. fxe4+ {[%clk
0:00:03.2]} 58... Kg4 {[%clk 0:00:08.2]} 59. Kc2 {[%clk 0:00:02.5]} 59... Rb6
{[%clk 0:00:07.8]} 60. Kc3 {[%clk 0:00:02.4]} 60... Kxg3 {[%clk 0:00:08.3]} 61.
Kc4 {[%clk 0:00:02.8]} 61... Kxh4 {[%clk 0:00:08.7]} 62. Kc5 {[%clk 0:00:03.7]}
62... Rb1 {[%clk 0:00:08.6]} 63. Kc6 {[%clk 0:00:03]} 63... g5 {[%clk
0:00:09.1]} 64. Rg8 {[%clk 0:00:02.3]} 64... g4 {[%clk 0:00:09.1]} 65. b8=Q
{[%clk 0:00:01.2]} 65... Rxb8 {[%clk 0:00:08.6]} 66. Rxb8 {[%clk 0:00:02.1]}
66... g3 {[%clk 0:00:09.2]} 67. Rg8 {[%clk 0:00:02.4]} 67... Kh3 {[%clk
0:00:08.9]} 68. Kd5 {[%clk 0:00:02.5]} 68... g2 {[%clk 0:00:06.3]} 69. Ke6
{[%clk 0:00:03.4]} 69... h4 {[%clk 0:00:04.2]} 70. Kxf6 {[%clk 0:00:03.3]} 70...
Kh2 {[%clk 0:00:05.1]} 71. e5 {[%clk 0:00:03.3]} 71... g1=Q {[%clk 0:00:04.3]}
72. Rxg1 {[%clk 0:00:03.7]} 72... Kxg1 {[%clk 0:00:05.2]} 73. e6 {[%clk
0:00:04.3]} 73... h3 {[%clk 0:00:06.1]} 74. e7 {[%clk 0:00:04.7]} 74... h2
{[%clk 0:00:07]} 75. e8=Q {[%clk 0:00:05.1]} 75... h1=Q {[%clk 0:00:07.9]} 76.
Qe1+ {[%clk 0:00:05.2]} 76... Kh2 {[%clk 0:00:08.3]} 77. Qxh1+ {[%clk
0:00:06.1]} 77... Kxh1 {[%clk 0:00:08.8]} 1/2-1/2